[Event "XV American Continental 2022"]
[Site "San Salvador"]
[Date "2022.05.04"]
[Round "4.9"]
[White "Cervantes Landeiro, Thalia"]
[Black "Morovic Fernandez, Ivan"]
[Result "1/2-1/2"]
[ECO "A53"]
[WhiteElo "2193"]
[BlackElo "2495"]
[Annotator "TA"]
[PlyCount "72"]
[EventDate "2022.05.02"]
[EventCountry "ESA"]
[SourceTitle "playchess.com"]
[Source "ChessBase"]
[SourceQuality "1"]
[TimeControl "40/5400+30:1800+30"]

{[%evp 11,72,48,52,38,35,27,27,27,29,13,22,14,16,0,0,0,17,9,0,0,20,25,10,10,16,0,0,0,0,0,0,0,0,-8,-9,-11,0,0,0,0,0,0,6,6,6,6,44,28,31,0,0,0,0,0,0,0,0,0,6,4,8,8,13]} 1. d4 {[%emt 0:00:04]} Nf6 {[%emt 0:00:06]} 2. c4 {[%emt 0:00:09]} d6 {[%emt 0:00:16]} 3. Nc3 {[%emt 0:00:27]} e5 {[%emt 0:00:14]} 4. d5 {[%emt 0:01:33]} Nbd7 {[%emt 0:01:32]} 5. e4 {[%emt 0:02:29]} Be7 {[%emt 0:00:18]} 6. Bd3 {[%emt 0:03:22]} O-O {[%emt 0:01:06]} 7. h3 {[%emt 0:06:01] A53: Old Indian Defence without Nf3.} c6 {[%emt 0:18:02]} 8. Nf3 {[%emt 0:02:55]} a5 {[%emt 0:02:25]} 9. O-O {[%emt 0:03:50] White has an edge.} Nc5 {[%emt 0:01:00]} 10. Bc2 {[%emt 0:02:59]} cxd5 {[%emt 0:03:59]} 11. cxd5 {[%emt 0:02:34]} b5 {[%emt 0:02:39]} 12. Re1 {[%emt 0:12:37] [#]} ({Reject} 12. Nxb5 Nfxe4 13. a4 Ba6 $15) 12... Ba6 $146 {[%emt 0:06:56]} ({Predecessor:} 12... Rb8 13. Rb1 Nfd7 14. Be3 Ba6 15. Qd2 Qc7 16. Ne2 b4 17. Rbc1 Rfc8 18. Ng3 g6 {½-½ (24) Horvath,J (2232)-Molnar,B (2372) Hungary 2008}) 13. Be3 {[%emt 0:05:51] [#] Threatens to win with Bxc5.} Qc7 {[%emt 0:07:54]} 14. Rc1 {[%emt 0:03:16]} Rfc8 {[%emt 0:01:59]} 15. a3 {[%emt 0:02:50]} Qb7 {[%emt 0:14:37]} 16. b4 {[%emt 0:04:26]} axb4 {[%emt 0:01:29]} 17. axb4 {[%emt 0:00:10]} Na4 {[%emt 0:01:20]} 18. Nxa4 {[%emt 0:03:09]} ({Much worse is} 18. Bxa4 bxa4 19. Nxa4 Nxe4 $15) (18. Na2 {seems wilder.} Nb2 19. Qe2 h6 20. Bb1) 18... bxa4 {[%emt 0:00:03]} 19. Bxa4 {[%emt 0:00:18]} Rxc1 {[%emt 0:01:05]} 20. Bxc1 {[%emt 0:01:49] And now Bc6 would win.} Qxb4 {[%emt 0:01:51]} 21. Bd2 {[%emt 0:04:05]} Qa3 {[%emt 0:03:52]} 22. Re3 {[%emt 0:04:42] [#]} Be2 $1 {[%emt 0:00:55]} 23. Rxe2 {[%emt 0:01:20] Strongly threatening Bc6.} (23. Rxa3 $2 {perishes.} Bxd1 24. Bxd1 Rxa3 $19) (23. Qe1 Qxa4) 23... Rxa4 {[%emt 0:04:12]} 24. Bg5 {[%emt 0:01:57]} Qa1 {[%emt 0:03:28]} 25. Qxa1 {[%emt 0:01:53]} Rxa1+ {[%emt 0:00:02]} 26. Kh2 {[%emt 0:00:12]} h6 {[%emt 0:00:17]} 27. Bxf6 {[%emt 0:00:37]} Bxf6 $11 {[%emt 0:00:02][%mdl 4096] Endgame KRB-KRN} 28. Rc2 {[%emt 0:02:06]} Ra4 {[%emt 0:05:54]} 29. Nd2 {[%emt 0:01:11]} Kh7 {[%emt 0:05:29]} 30. Rc7 {[%emt 0:06:53]} Rd4 {[%emt 0:04:37] The position is equal.} 31. Nc4 {[%emt 0:01:10]} Rxe4 {[%emt 0:02:52]} 32. Nxd6 {[%emt 0:00:24]} Rd4 {[%emt 0:03:10]} 33. Rxf7 {[%emt 0:08:05]} e4 {[%emt 0:00:17] aiming for ...Be5+.} 34. g3 {[%emt 0:01:45]} Be5 {[%emt 0:00:38]} 35. Nf5 {[%emt 0:01:27]} Rxd5 {[%emt 0:00:14]} 36. Ne3 {[%emt 0:01:15]} Ra5 {[%emt 0:01:30] Weighted Error Value: White=0.03 (flawless) /Black=0.03 (flawless)} 1/2-1/2

[Event "XV American Continental 2022"]
[Site "San Salvador"]
[Date "2022.05.04"]
[Round "4.10"]
[White "Mekhitarian, Krikor Sevag"]
[Black "Giron, Jorge Ernesto"]
[Result "0-1"]
[ECO "A50"]
[WhiteElo "2569"]
[BlackElo "2257"]
[Annotator "TA"]
[PlyCount "78"]
[EventDate "2022.05.02"]
[EventCountry "ESA"]
[SourceTitle "playchess.com"]
[Source "ChessBase"]
[SourceQuality "1"]
[TimeControl "40/5400+30:1800+30"]

{[%evp 9,78,67,75,72,100,106,87,77,93,77,112,66,118,117,193,204,193,205,281,104,91,106,140,75,75,75,80,5,11,32,96,85,91,75,150,160,157,0,0,0,0,0,0,0,-3,-110,-111,-102,-18,-15,-8,-13,-11,-297,-276,-7399,-6207,-29979,-29980,-29979,-613,-29975,-675,-1206,-800,-29979,-29980,-29987,-29988,-29987,-608]} 1. d4 {[%emt 0:01:06]} Nf6 {[%emt 0:00:15]} 2. c4 {[%emt 0:00:21]} b6 {[%emt 0:00:58]} 3. Nc3 {[%emt 0:08:46]} Bb7 {[%emt 0:00:31]} 4. f3 {[%emt 0:00:18]} c5 {[%emt 0:05:19]} 5. d5 {[%emt 0:00:18]} e6 {[%emt 0:00:06]} 6. e4 {[%emt 0:00:22] A50: Queen's Fianchetto Defence (1 d4 Nf6 2 c4 b6).} exd5 {[%emt 0:00:21]} 7. cxd5 {[%emt 0:00:12]} (7. Nxd5 $6 Nxd5 8. cxd5 (8. exd5 Bd6 $11) 8... Bd6 $11) 7... d6 {[%emt 0:00:06] [#]} 8. Nge2 $146 {[%emt 0:13:56] White is better.} ({Predecessor:} 8. a4 Be7 9. a5 O-O 10. a6 Bc8 11. Bb5 Ne8 12. Nge2 Nc7 13. Qd3 Nxb5 14. Qxb5 {1-0 (33) Mikhalsky,V (2269)-Titichoca Daza,D (2250) Chess.com INT 2022}) 8... Na6 {[%emt 0:05:05]} 9. Ng3 {[%emt 0:04:31]} Nc7 {[%emt 0:00:15]} 10. Be2 {[%emt 0:07:39]} (10. Qa4+ $16 Nd7 11. Bf4) 10... h5 {[%emt 0:10:22]} (10... g6 $14) 11. Bg5 $16 {[%emt 0:02:58]} Bc8 {[%emt 0:10:53]} (11... h4 $16) 12. e5 $18 {[%emt 0:16:04]} dxe5 {[%emt 0:00:12]} 13. Nge4 {[%emt 0:00:22] f4 is the strong threat.} Bd6 {[%emt 0:00:06]} 14. O-O $2 {[%emt 0:06:01]} (14. Qa4+ $18 {has better winning chances.} Ke7 15. f4 (15. Qc6 Bf5 $16)) 14... Kf8 {[%emt 0:02:22]} 15. f4 {[%emt 0:03:13]} Bb7 {[%emt 0:19:36] [#]} 16. Bxf6 {[%emt 0:22:52]} (16. Qd2 $142 $1) 16... gxf6 $16 {[%emt 0:00:12]} 17. f5 {[%emt 0:00:03]} (17. Bxh5 exf4 18. Nxd6 Qxd6 $15) 17... h4 {[%emt 0:02:16]} 18. Bc4 {[%emt 0:00:28]} (18. Rf2 $16) 18... a6 $1 $11 {[%emt 0:07:11]} 19. a4 {[%emt 0:00:17] Against b5} b5 {[%emt 0:16:55]} (19... h3 $14) 20. axb5 $16 {[%emt 0:00:26]} axb5 {[%emt 0:00:04]} 21. Rxa8 {[%emt 0:00:40]} Qxa8 {[%emt 0:00:05]} (21... Bxa8 $142 22. Nxb5 Nxb5 23. Bxb5 h3) 22. Nxd6 {[%emt 0:03:57] Pair of Knights!} ({Much less strong is} 22. Nxb5 Nxb5 23. Bxb5 Ke7 $11) 22... bxc4 {[%emt 0:00:04] [#]} 23. Nxb7 {[%emt 0:02:16]} (23. Nde4 $1 $16) 23... Qxb7 $11 {[%emt 0:00:03]} 24. d6 {[%emt 0:02:40]} Nb5 {[%emt 0:00:31]} 25. Nxb5 {[%emt 0:01:18]} Qxb5 {[%emt 0:00:02][%mdl 4096] Endgame KQR-KQR} 26. Qd5 {[%emt 0:00:06]} ({Don't blunder} 26. d7 $2 Ke7 27. Qf3 (27. Qd5 $2 Rd8 $19) 27... Rd8 $19) 26... Kg7 {[%emt 0:01:01]} 27. d7 {[%emt 0:00:36]} (27. Qd2 $1 $11 {remains equal.}) 27... Rd8 $17 {[%emt 0:00:05]} 28. Rd1 {[%emt 0:00:02]} e4 {[%emt 0:01:17]} (28... Qxb2 $17 {White must now prevent ...c3.} 29. Qxc4 Qb4 30. Qxb4 cxb4) 29. Qxe4 $11 {[%emt 0:01:15] aiming for Qg4+.} Rxd7 {[%emt 0:00:04]} 30. Qg4+ {[%emt 0:00:44]} Kf8 {[%emt 0:00:05]} 31. Re1 {[%emt 0:01:34][%mdl 8192]} (31. Rxd7 $11 Qxd7 32. Qxc4) 31... Qxb2 $19 {[%emt 0:02:47]} 32. Qh5 $2 {[%emt 0:00:34]} (32. Qxc4 Rd2 33. Qe4) 32... Qd4+ {[%emt 0:00:05]} 33. Kh1 {[%emt 0:00:01]} Kg7 {[%emt 0:00:07]} 34. h3 {[%emt 0:00:32]} Ra7 {[%emt 0:00:36]} (34... c3 $142 35. Qe2 Qa4 36. Rg1 c2 37. Qe8 c1=Q 38. Rxc1 Rd1+ 39. Qe1 Rxe1+ 40. Rxe1 Qf4 41. Kg1 c4 42. Re2 Qd4+ 43. Kf1 Qd3 44. Kf2 c3 45. Re3 Qd4 46. Kf3 c2 47. Re1 Qd3+ 48. Kf2 Qd2+ 49. Kf1 Kf8 50. Ra1 Qd3+ 51. Ke1 Qc3+ 52. Ke2 Qxa1 53. Kf3 c1=Q 54. g4 Qe1 55. Kf4 Qg3+ 56. Ke4 Qae5#) 35. Kh2 {[%emt 0:00:20]} Qf4+ {[%emt 0:00:15]} (35... Ra1 $142 36. Rxa1 Qe5+ 37. Kg1 Qxa1+ 38. Kf2 Qd4+ 39. Ke1 c3 40. Qg4+ Kf8 41. Qd1 Qg1+ 42. Ke2 Qxg2+ 43. Kd3 Qxh3+ 44. Kc4 Qxf5 45. Kxc3 Qe5+ 46. Kc2 h3 47. Qf3 h2 48. Qa8+ Qe8 49. Qf3 Qe1 50. Qa8+ Qe8 51. Qf3 Qe5 52. Qa8+ Kg7 53. Qg2+ Kh6 54. Qd2+ Kh7 55. Qg2 f5 56. Qh3+ Kg6 57. Qg2+ Kf6 58. Kb3 Qe3+ 59. Kb2 Qd4+ 60. Kb3 Qe3+ 61. Kb2 Qd4+ 62. Ka2 Qg1 63. Qb2+ Kg6 64. Qb6+ Kh7 65. Qf6 h1=Q 66. Qxf7+ Kh8 67. Qf8+ Qg8+ 68. Qxg8+ Kxg8 69. Kb2 f4 70. Kc3 Qe4 71. Kb3 f3 72. Kc3 f2 73. Kd2 f1=Q 74. Kc3 Qc1+ 75. Kb3 Qec4#) 36. Kh1 {[%emt 0:00:01]} Ra2 {[%emt 0:00:34] ( -> ...Rd2)} 37. Rg1 {[%emt 0:01:10]} c3 {[%emt 0:00:16] Black mates.} 38. Qg4+ {[%emt 0:00:49]} Qxg4 {[%emt 0:00:18]} 39. hxg4 {[%emt 0:00:02]} Kh6 {[%emt 0:00:15] What a fight!  Weighted Error Value: White=1.05/Black=0.74} (39... Rd2 $142 40. Rc1 c2 41. Kh2 Kh6 42. Rxc2 Rxc2 43. Kh3 Kg5 44. g3 Rc3 45. Kh2 Rxg3 46. Kh1 Kxg4 47. Kh2 Kf3 48. Kh1 Rh3+ 49. Kg1 c4 50. Kf1 Rh1#) 0-1

[Event "XV American Continental 2022"]
[Site "San Salvador"]
[Date "2022.05.04"]
[Round "4.11"]
[White "Kaidanov, Gregory"]
[Black "Hernandez Jimenez, Alexander Andres"]
[Result "1-0"]
[ECO "A05"]
[WhiteElo "2556"]
[BlackElo "2137"]
[Annotator "TA"]
[PlyCount "33"]
[EventDate "2022.05.02"]
[EventCountry "ESA"]
[SourceTitle "playchess.com"]
[Source "ChessBase"]
[SourceQuality "1"]
[TimeControl "40/5400+30:1800+30"]

{[%evp 19,33,19,26,18,41,13,66,75,90,79,127,112,438,442,432,429]} 1. Nf3 {[%emt 0:00:06]} Nf6 {[%emt 0:02:15]} 2. g3 {[%emt 0:01:05]} d5 {[%emt 0:01:45]} 3. Bg2 {[%emt 0:00:05]} c5 {[%emt 0:01:33]} 4. O-O {[%emt 0:01:45]} g6 {[%emt 0:01:23]} 5. c4 {[%emt 0:00:50]} Bg7 {[%emt 0:03:02]} 6. cxd5 {[%emt 0:01:26]} Nxd5 {[%emt 0:03:23]} 7. d4 {[%emt 0:00:32]} cxd4 {[%emt 0:01:20]} 8. Nxd4 {[%emt 0:00:14]} O-O {[%emt 0:05:05]} 9. Nc3 {[%emt 0:01:51]} Nxc3 {[%emt 0:05:47]} 10. bxc3 {[%emt 0:00:29][%cal Bb2c3,Bc3c4][%mdl 32]} Qa5 {[%emt 0:03:55]} 11. Be3 {[%emt 0:10:22] D75: Fianchetto Grünfeld: Main Line with 7...c5.} Na6 {[%emt 0:04:03]} 12. Qb3 {[%emt 0:05:19]} e5 {[%emt 0:08:57]} (12... Rb8 $11) 13. Nb5 $14 {[%emt 0:03:06] White is more active. White is slightly better.} Be6 {[%emt 0:01:29] [#]} 14. c4 $1 {[%emt 0:00:12] [#]} e4 $146 {[%emt 0:07:19]} (14... Rfd8 $142) ({Predecessor:} 14... Rac8 15. Nd6 Rc7 16. Nxb7 Qb4 17. Rab1 Qxc4 18. Qa3 {1-0 (18) Garcia Garcia,A (2247)-Mischuk,D (2347) Chess.com INT 2021}) 15. Rad1 $16 {[%emt 0:03:39]} f5 $2 {[%emt 0:07:28][%mdl 8192]} (15... b6 $16 {is tougher.}) 16. Rd6 $18 {[%emt 0:01:15]} Bf7 {[%emt 0:00:56]} 17. Bd2 {[%emt 0:00:21] Against Qb4. White took control after the opening.  Weighted Error Value: White=0.07 (flawless) /Black=0.87} 1-0

[Event "XV American Continental 2022"]
[Site "San Salvador"]
[Date "2022.05.06"]
[Round "5.1"]
[White "Swiercz, Dariusz"]
[Black "Gareyev, Timur"]
[Result "1/2-1/2"]
[ECO "E11"]
[WhiteElo "2665"]
[BlackElo "2565"]
[Annotator "TA"]
[PlyCount "46"]
[EventDate "2022.05.02"]
[EventCountry "ESA"]
[SourceTitle "playchess.com"]
[Source "ChessBase"]
[SourceQuality "1"]
[TimeControl "40/5400+30:1800+30"]

{[%evp 10,46,13,10,35,29,33,35,18,0,8,0,0,-3,8,0,16,0,8,10,10,0,15,21,20,27,29,21,20,23,35,10,10,14,12,10,13,0,102]} 1. d4 {[%emt 0:01:55]} Nf6 {[%emt 0:02:09]} 2. c4 {[%emt 0:00:08]} e6 {[%emt 0:00:33]} 3. Nf3 {[%emt 0:00:07]} Bb4+ {[%emt 0:01:02]} 4. Nbd2 {[%emt 0:00:45]} O-O {[%emt 0:00:25]} 5. a3 {[%emt 0:00:04]} Be7 {[%emt 0:00:06]} 6. e4 {[%emt 0:00:44]} d6 {[%emt 0:00:08][%cal Oe6e5] E11: Bogo-Indian.} (6... d5 $5 {[%cal Rd5e4]}) 7. Be2 {[%emt 0:06:40]} Nfd7 {[%emt 0:03:47]} 8. b3 {[%emt 0:19:51]} e5 {[%emt 0:00:43] White is slightly better.} 9. Bb2 {[%emt 0:00:06]} exd4 {[%emt 0:05:47]} 10. Nxd4 {[%emt 0:00:07]} Bf6 {[%emt 0:00:31] [#] aiming for ...c5.} 11. Qc2 {[%emt 0:00:43] [#]} Ne5 $146 {[%emt 0:06:32]} ({Predecessor:} 11... Nc6 12. N4f3 Bxb2 13. Qxb2 Qf6 14. Qxf6 Nxf6 15. O-O-O Ng4 16. Rhf1 f5 17. h3 Nge5 18. Nxe5 dxe5 19. exf5 Bxf5 {1-0 (52) Postny,E (2598)-Smirnov,A (2337) Tallinn 2019}) 12. O-O {[%emt 0:07:43]} Nbc6 {[%emt 0:00:25]} 13. Nf5 {[%emt 0:15:26]} Ng6 {[%emt 0:01:22]} 14. g3 {[%emt 0:01:44] Prevents Nf4.} Re8 {[%emt 0:03:04]} 15. Rfe1 {[%emt 0:00:57]} Nf8 {[%emt 0:11:52]} 16. Rad1 {[%emt 0:04:30]} Bxb2 {[%emt 0:06:32]} 17. Qxb2 {[%emt 0:00:04][%csl Gf5][%cal Rb2g7]} Bxf5 {[%emt 0:00:08]} 18. exf5 {[%emt 0:00:02]} Qg5 {[%emt 0:00:28]} 19. Bd3 {[%emt 0:01:32]} Nd7 {[%emt 0:03:29]} 20. Nf3 {[%emt 0:19:09]} Qh5 {[%emt 0:01:03] The position is equal.} 21. Kg2 {[%emt 0:00:25]} Nde5 {[%emt 0:05:33]} 22. Nxe5 {[%emt 0:00:04]} Nxe5 {[%emt 0:00:08]} ({Don't do} 22... Rxe5 23. f4 Ree8 24. b4 $16) 23. Be4 {[%emt 0:02:32] Against Qf3+} Rad8 {[%emt 0:23:24] Weighted Error Value: White=0.05 (flawless) /Black=0.03 (flawless)} (23... Ng4 $1 $11 24. h4 {[#]} Nxf2 $1 25. Qxf2 Rxe4) 1/2-1/2

[Event "XV American Continental 2022"]
[Site "San Salvador"]
[Date "2022.05.06"]
[Round "5.2"]
[White "Yoo, Christopher Woojin"]
[Black "Pichot, Alan"]
[Result "1/2-1/2"]
[ECO "C58"]
[WhiteElo "2535"]
[BlackElo "2652"]
[Annotator "TA"]
[PlyCount "42"]
[EventDate "2022.05.02"]
[EventCountry "ESA"]
[SourceTitle "playchess.com"]
[Source "ChessBase"]
[SourceQuality "1"]
[TimeControl "40/5400+30:1800+30"]

{[%evp 14,42,26,40,31,25,22,0,0,0,0,0,-10,0,15,0,0,0,0,0,0,0,8,0,0,-10,-14,-24,0,0,0]} 1. e4 {[%emt 0:00:07]} e5 {[%emt 0:00:15]} 2. Nf3 {[%emt 0:00:04]} Nc6 {[%emt 0:00:09]} 3. Bc4 {[%emt 0:00:04]} Nf6 {[%emt 0:00:23]} 4. Ng5 {[%emt 0:00:06]} d5 {[%emt 0:00:08]} 5. exd5 {[%emt 0:00:02]} Na5 {[%emt 0:00:09]} 6. Bb5+ {[%emt 0:00:02]} c6 {[%emt 0:00:23]} 7. dxc6 {[%emt 0:00:04]} bxc6 {[%emt 0:00:06]} 8. Bd3 $1 {[%emt 0:00:04][%mdl 4] is currently scoring better than 8.Be2.} Nd5 {[%emt 0:00:44] C58: Two Knights: 4 Ng5 d5 5 exd5 Na5 sidelines.} 9. h4 {[%emt 0:00:07]} ({Worse is} 9. Qh5 g6 10. Nxf7 gxh5 $17) 9... Qc7 {[%emt 0:00:42]} 10. O-O {[%emt 0:07:38]} h6 {[%emt 0:02:30]} 11. Nf3 {[%emt 0:02:58]} Bd6 $1 {[%emt 0:00:45]} 12. Be4 {[%emt 0:01:53]} O-O {[%emt 0:14:19]} 13. d4 {[%emt 0:02:56]} Bg4 {[%emt 0:00:59]} 14. Bxd5 {[%emt 0:06:01]} cxd5 {[%emt 0:00:13]} 15. dxe5 {[%emt 0:00:07]} Bxe5 {[%emt 0:06:42] This bishop pair is nice.} 16. Qxd5 {[%emt 0:00:48]} Bxf3 {[%emt 0:04:25]} 17. Qxf3 {[%emt 0:00:07]} ({Don't go for} 17. gxf3 $2 Rad8 18. Qb5 Rd4 $19) 17... Qxc2 {[%emt 0:00:06] [#]} 18. Qd5 $146 {[%emt 0:09:18]} ({Predecessor:} 18. Nc3 Nc4 19. Re1 Rad8 20. Qe4 Qd3 21. Rb1 Na3 22. Qxd3 Rxd3 23. bxa3 Bxc3 24. Rf1 {1-0 (62) Huschenbeth,N (2596)-Tarjan,J (2412) Douglas 2017}) 18... Qc7 {[%emt 0:11:25]} (18... Bxb2 $2 {[#]} 19. Na3 $1 {[%mdl 512]} Qc3 20. Bxb2 Qxb2 21. Qxa5 $18) 19. Nc3 {[%emt 0:07:41]} Rad8 {[%emt 0:04:07]} 20. Qf3 {[%emt 0:02:50]} Rfe8 {[%emt 0:14:16][%mdl 1024] Black has compensation.} 21. g3 {[%emt 0:08:04]} Nc6 {[%emt 0:01:26] Weighted Error Value: White=0.03 (flawless) /Black=0.03 (flawless)} 1/2-1/2

[Event "XV American Continental 2022"]
[Site "San Salvador"]
[Date "2022.05.05"]
[Round "5.3"]
[White "Quesada Perez, Yasser"]
[Black "Hungaski, Robert"]
[Result "1/2-1/2"]
[ECO "C47"]
[WhiteElo "2560"]
[BlackElo "2521"]
[Annotator "TA"]
[PlyCount "65"]
[EventDate "2022.05.02"]
[EventCountry "ESA"]
[SourceTitle "playchess.com"]
[Source "ChessBase"]
[SourceQuality "1"]
[TimeControl "40/5400+30:1800+30"]

{[%evp 16,65,0,0,29,12,15,23,26,12,34,56,68,21,48,35,44,20,16,12,26,26,31,30,34,15,29,14,16,0,0,0,0,0,0,0,0,0,0,0,0,0,0,-16,-17,-15,0,0,0,-10,-6,0]} 1. e4 {[%emt 0:00:07]} e5 {[%emt 0:04:06]} 2. Nf3 {[%emt 0:00:12]} Nc6 {[%emt 0:00:06]} 3. Nc3 {[%emt 0:00:09]} Nf6 {[%emt 0:00:06]} 4. d4 {[%emt 0:00:09]} exd4 {[%emt 0:00:12]} 5. Nxd4 {[%emt 0:00:05]} Bb4 {[%emt 0:01:42]} 6. Nxc6 {[%emt 0:00:06]} bxc6 {[%emt 0:00:05]} 7. Bd3 {[%emt 0:00:06]} d5 {[%emt 0:00:24]} 8. Bd2 {[%emt 0:00:07]} O-O {[%emt 0:03:45]} 9. O-O {[%emt 0:00:06][%cal Bh1f1,Bf1e1,Be1e5][%mdl 32]} dxe4 {[%emt 0:16:10] C47: Scotch Four Knights and Four Knights with 4 g3.} 10. Nxe4 {[%emt 0:02:42]} Bxd2 {[%emt 0:00:06]} 11. Nxd2 {[%emt 0:02:57][%cal Be4d2,Bd2c4,Bc4e5,Be5f3][%mdl 32]} Bg4 {[%emt 0:00:10] Against Qf3. White has an edge.} 12. Qc1 {[%emt 0:11:11] [#]} Nd5 $146 {[%emt 0:00:36][%cal Bf6d5,Bd5f4,Bf4d3][%mdl 32]} ({Predecessor:} 12... Re8 13. Re1 Rxe1+ 14. Qxe1 Qd4 15. Nc4 Re8 16. Qd2 g6 17. Re1 Be6 18. Bf1 c5 {0-1 (60) Wang,T (2368)-Panchanathan,M (2500) Charlotte 2021}) 13. Re1 {[%emt 0:04:19]} Rb8 {[%emt 0:16:12]} 14. a3 {[%emt 0:15:42]} (14. b3 $14) 14... Qg5 {[%emt 0:09:23]} 15. Nc4 {[%emt 0:13:22]} Nf4 {[%emt 0:01:31]} 16. Re5 {[%emt 0:04:42]} Bf5 {[%csl Gf4][%cal Rg5g2] [#]} 17. Qf1 {[%emt 0:01:20]} Nxd3 {[%emt 0:18:29]} 18. cxd3 {[%emt 0:00:05]} Qg6 {[%emt 0:02:06]} 19. Re3 {[%emt 0:00:10]} Rfd8 {[%emt 0:02:27][%cal Rf5d3]} 20. Ne5 {[%emt 0:02:33]} Qd6 {[%emt 0:00:46]} 21. Rc1 {[%emt 0:05:43]} c5 {[%emt 0:01:18] The position is equal.} (21... Rxb2 $2 22. Nxc6 Be6 23. Nxd8 Qxd8 24. Qe1 $18) 22. b4 {[%emt 0:10:12]} f6 {[%emt 0:00:25]} ({Much less strong is} 22... cxb4 23. Nc6 $16) 23. bxc5 {[%emt 0:01:19]} Qd5 {[%emt 0:00:05]} 24. Nf3 {[%emt 0:00:06]} Bxd3 {[%emt 0:00:17]} 25. Qe1 {[%emt 0:00:05]} Bg6 {[%emt 0:01:14]} 26. Qa5 {[%emt 0:01:21][%csl LRa7,LRc7]} Rd7 {[%emt 0:04:45]} 27. h3 {[%emt 0:03:18]} h6 {[%emt 0:03:10]} 28. Rce1 {[%emt 0:01:45]} c6 {[%emt 0:00:58]} 29. a4 {[%emt 0:01:06]} Qc4 {[%emt 0:02:38]} 30. Re6 {[%emt 0:02:25]} Qd5 {[%emt 0:02:51]} 31. Re7 {[%emt 0:03:53]} Rbb7 {[%emt 0:00:58]} 32. Rxd7 {[%emt 0:00:16]} Qxd7 {[%emt 0:01:47]} 33. Qc3 {[%emt 0:01:07] Weighted Error Value: White=0.06 (flawless) /Black=0.05 (flawless)} 1/2-1/2

[Event "XV American Continental 2022"]
[Site "San Salvador"]
[Date "2022.05.05"]
[Round "5.4"]
[White "Giron, Jorge Ernesto"]
[Black "Salinas Herrera, Pablo"]
[Result "1/2-1/2"]
[ECO "C79"]
[WhiteElo "2257"]
[BlackElo "2534"]
[Annotator "TA"]
[PlyCount "104"]
[EventDate "2022.05.02"]
[EventCountry "ESA"]
[SourceTitle "playchess.com"]
[Source "ChessBase"]
[SourceQuality "1"]
[TimeControl "40/5400+30:1800+30"]

{[%evp 17,104,0,0,-31,-27,-52,-23,-30,-32,-41,-40,-49,-7,-16,54,53,48,43,42,0,0,0,0,0,0,0,14,20,27,14,12,-13,-13,-44,-45,-37,0,0,-8,-26,0,0,0,0,0,-5,0,0,0,0,0,-4,0,0,0,0,0,0,0,0,0,0,0,0,0,0,0,0,0,0,0,0,0,0,0,0,0,0,0,0,0,0,0,0,0,0,0,0,0]} 1. e4 {[%emt 0:00:16]} e5 {[%emt 0:00:05]} 2. Nf3 {[%emt 0:00:05]} Nc6 {[%emt 0:00:03]} 3. Bb5 {[%emt 0:00:04]} a6 {[%emt 0:00:05]} 4. Ba4 {[%emt 0:00:03]} Nf6 {[%emt 0:01:10]} 5. O-O {[%emt 0:00:14]} d6 {[%emt 0:00:15]} 6. d3 {[%emt 0:00:23]} b5 {[%emt 0:03:59]} 7. Bb3 {[%emt 0:00:04]} Na5 {[%emt 0:00:04]} 8. Re1 {[%emt 0:06:17]} Be7 {[%emt 0:00:08]} 9. h3 {[%emt 0:02:25]} O-O {[%emt 0:00:13]} 10. c4 {[%emt 0:16:38] C90: Closed Ruy Lopez with 7...d6: Early deviations.} c5 {[%emt 0:09:55] [#]} 11. Bd2 $146 {[%emt 0:06:42]} ({Predecessor:} 11. Nc3 Be6 12. Nd5 Nxd5 13. cxd5 Bd7 14. Bc2 Nb7 15. Nh2 f5 16. exf5 Bxf5 17. f4 {1-0 (40) Waechter,K-Dittmar,O DDR corr 1984}) 11... Bd7 {[%emt 0:18:12]} 12. Bxa5 {[%emt 0:18:11] Black has an edge.} Qxa5 {[%emt 0:00:06]} 13. cxb5 {[%emt 0:00:03]} axb5 {[%emt 0:00:14]} 14. Nc3 {[%emt 0:00:04]} Bd8 {[%emt 0:09:08]} 15. a4 {[%emt 0:01:45]} c4 {[%emt 0:10:46]} ({Better is} 15... b4 $11 16. Nd5 Nxd5 17. Bxd5 Ra6) 16. dxc4 $14 {[%emt 0:01:30]} bxc4 {[%emt 0:00:04]} 17. Bxc4 {[%emt 0:00:13]} Qb4 {[%csl LRb2,LRc4]} 18. Qd3 {[%emt 0:06:19]} Bxa4 {[%emt 0:10:14]} 19. Nxa4 {[%emt 0:01:41]} Rxa4 {[%emt 0:00:15]} 20. Rxa4 {[%emt 0:02:52]} Qxa4 {[%emt 0:00:04]} 21. b3 {[%emt 0:04:40]} Qc6 {[%emt 0:00:08]} 22. Rc1 {[%emt 0:02:02][%cal Oc4f7] [#] Bxf7+! is the strong threat.} Qb6 {[%emt 0:04:58]} 23. Rd1 {[%emt 0:01:13]} Bc7 {[%emt 0:00:54]} 24. Nh4 {[%emt 0:05:44]} g6 {[%emt 0:00:12]} 25. Qf3 {[%emt 0:02:00]} Kg7 {[%emt 0:04:56]} 26. g4 {[%emt 0:00:26]} Bd8 {[%emt 0:04:46][%cal Of6e4]} 27. Ng2 {[%emt 0:02:45]} Qc6 {[%emt 0:00:22]} 28. Bd5 {[%emt 0:03:05]} Nxd5 {[%emt 0:00:59]} 29. Rxd5 {[%emt 0:00:05] The position is equal.} Bb6 {[%emt 0:00:03]} 30. Ne3 {[%emt 0:00:38]} Bxe3 {[%emt 0:01:00]} 31. Qxe3 $11 {[%emt 0:00:05][%mdl 4096] Endgame KQR-KQR} Rb8 {[%emt 0:00:07]} 32. Kg2 {[%emt 0:01:00]} h6 {[%emt 0:00:46]} 33. Qd3 {[%emt 0:02:12]} Rb6 {[%emt 0:00:06]} 34. Kh2 {[%emt 0:00:58]} Qc7 {[%emt 0:00:17]} 35. Kg2 {[%emt 0:02:24]} Qb8 {[%emt 0:00:11]} 36. b4 {[%emt 0:02:17]} Rxb4 {[%emt 0:01:22]} 37. Rxd6 {[%emt 0:00:04]} Qa8 {[%emt 0:02:36]} 38. Rd5 {[%emt 0:00:26]} Qa1 {[%emt 0:00:14]} 39. Rd7 {[%emt 0:01:50] [#] White wants to mate with Qd5.} Rd4 {[%emt 0:02:00] Inhibits Qd5.} 40. Rxd4 {[%emt 0:00:05]} exd4 {[%emt 0:00:02] KQ-KQ} 41. Kf3 {[%emt 0:30:14]} Qb2 {[%emt 0:30:35]} (41... Qc3 $5 42. Ke2 Qb4 $11) 42. e5 {[%emt 0:00:52]} Qb7+ {[%emt 0:00:03]} 43. Qe4 {[%emt 0:00:08]} Qb3+ {[%emt 0:00:01]} 44. Ke2 {[%emt 0:00:14]} Qc4+ {[%emt 0:00:27]} 45. Kd2 {[%emt 0:01:39]} Kf8 {[%emt 0:05:19]} 46. e6 {[%emt 0:07:00]} Qa2+ {[%emt 0:08:38]} 47. Kd3 {[%emt 0:01:43]} Qxf2 {[%emt 0:00:05]} 48. exf7 {[%emt 0:00:16]} Kxf7 {[%emt 0:00:41]} 49. Qd5+ {[%emt 0:00:00]} Kf6 {[%emt 0:00:00]} 50. Qd8+ {[%emt 0:00:00]} Kf7 {[%emt 0:00:00] aiming for ...Qf1+.} 51. Qd7+ {[%emt 0:00:00]} Kf6 {[%emt 0:00:00] And now ...Qe3+ would win.} 52. Qd8+ $1 {[%emt 0:00:00]} Kf7 {[%emt 0:00:00] Weighted Error Value: White=0.05 (flawless) /Black=0.07 (flawless)} 1/2-1/2